[Event "*** Titled Tuesday 3|2 Blitz"]
[Site "Chess.com"]
[Date "2017.03.07"]
[Round "11"]
[White "poummba"]
[Black "spectralsoul"]
[Result "1-0"]
[WhiteElo "2371"]
[BlackElo "2587"]
[TimeControl "180+2"]
[EndTime "15:39:31 PST"]
[Termination "poummba won by resignation"]

1. e4 {[%clk 0:03:02]} 1... d6 {[%clk 0:03:01]} 2. d4 {[%clk 0:03:03]} 2... Nf6
{[%clk 0:03:02.6]} 3. Nc3 {[%clk 0:03:04.1]} 3... g6 {[%clk 0:03:04.2]} 4. Bc4
{[%clk 0:03:04.7]} 4... Bg7 {[%clk 0:03:03.9]} 5. Qe2 {[%clk 0:03:06.1]} 5...
Nc6 {[%clk 0:03:00.8]} 6. Nf3 {[%clk 0:03:05.2]} 6... Bg4 {[%clk 0:03:01.7]} 7.
Be3 {[%clk 0:03:06.1]} 7... Nd7 {[%clk 0:03:03.2]} 8. Rd1 {[%clk 0:03:02.4]}
8... O-O {[%clk 0:03:01.7]} 9. O-O {[%clk 0:02:50.8]} 9... e5 {[%clk 0:03:01.7]}
10. d5 {[%clk 0:02:43.2]} 10... Nd4 {[%clk 0:03:02.4]} 11. Bxd4 {[%clk
0:02:39.7]} 11... exd4 {[%clk 0:03:04.3]} 12. Nb1 {[%clk 0:02:39.3]} 12... Ne5
{[%clk 0:02:40.8]} 13. Nbd2 {[%clk 0:02:39.1]} 13... Re8 {[%clk 0:02:30]} 14. h3
{[%clk 0:02:36.2]} 14... Bxf3 {[%clk 0:02:06.7]} 15. Nxf3 {[%clk 0:02:37.4]}
15... Nxc4 {[%clk 0:02:08.1]} 16. Qxc4 {[%clk 0:02:37.8]} 16... Rxe4 {[%clk
0:02:09.7]} 17. Nxd4 {[%clk 0:02:34.5]} 17... Qe7 {[%clk 0:01:29.9]} 18. c3
{[%clk 0:02:32.8]} 18... Re8 {[%clk 0:01:31.4]} 19. Qb3 {[%clk 0:02:24.5]} 19...
b6 {[%clk 0:01:18.7]} 20. Nc6 {[%clk 0:02:17.8]} 20... Qg5 {[%clk 0:01:16.1]}
21. Nxa7 {[%clk 0:02:13.5]} 21... Re2 {[%clk 0:00:51.9]} 22. Nb5 {[%clk
0:02:14.4]} 22... R8e7 {[%clk 0:00:24.1]} 23. Nd4 {[%clk 0:02:13.3]} 23... R2e4
{[%clk 0:00:18.6]} 24. Nf3 {[%clk 0:01:44.2]} 24... Qf4 {[%clk 0:00:19.4]} 25.
Qc2 {[%clk 0:01:32]} 25... Re2 {[%clk 0:00:18]} 26. Rd2 {[%clk 0:01:29.8]} 26...
R2e4 {[%clk 0:00:19.4]} 27. Qd3 {[%clk 0:01:20.1]} 27... g5 {[%clk 0:00:19.8]}
28. g3 {[%clk 0:01:16.4]} 28... Qf5 {[%clk 0:00:21]} 29. Kg2 {[%clk 0:01:15.2]}
29... h5 {[%clk 0:00:21.5]} 30. Re1 {[%clk 0:01:06.7]} 30... g4 {[%clk
0:00:20.4]} 31. hxg4 {[%clk 0:01:07.9]} 31... hxg4 {[%clk 0:00:22.3]} 32. Nh4
{[%clk 0:01:07.6]} 32... Qe5 {[%clk 0:00:23.9]} 33. Rxe4 {[%clk 0:01:00.9]}
33... Qxe4+ {[%clk 0:00:25.8]} 34. Qxe4 {[%clk 0:01:02.1]} 34... Rxe4 {[%clk
0:00:27.7]} 35. Nf5 {[%clk 0:01:00.6]} 35... Bf6 {[%clk 0:00:29.1]} 36. Kf1
{[%clk 0:00:39.1]} 36... Kh7 {[%clk 0:00:28.5]} 37. Re2 {[%clk 0:00:35.9]} 37...
Ra4 {[%clk 0:00:30.1]} 38. a3 {[%clk 0:00:34.1]} 38... Kg6 {[%clk 0:00:31.3]}
39. Ne7+ {[%clk 0:00:31]} 39... Kg5 {[%clk 0:00:32.4]} 40. Nc6 {[%clk
0:00:25.2]} 40... Rc4 {[%clk 0:00:33.8]} 41. Ke1 {[%clk 0:00:19.3]} 41... Rc5
{[%clk 0:00:34.5]} 42. Nb4 {[%clk 0:00:19.9]} 42... Rc4 {[%clk 0:00:33.5]} 43.
Kd2 {[%clk 0:00:20.7]} 43... b5 {[%clk 0:00:33.6]} 44. Kd3 {[%clk 0:00:21.9]}
44... Kf5 {[%clk 0:00:34.6]} 45. Re8 {[%clk 0:00:20.3]} 45... Be5 {[%clk
0:00:29.8]} 46. a4 {[%clk 0:00:20.4]} 46... Re4 {[%clk 0:00:16.6]} 47. axb5
{[%clk 0:00:21.5]} 47... Re1 {[%clk 0:00:18]} 48. Re7 {[%clk 0:00:20.7]} 48...
Rd1+ {[%clk 0:00:11.4]} 49. Kc4 {[%clk 0:00:21.7]} 49... f6 {[%clk 0:00:09.1]}
50. Rxc7 {[%clk 0:00:20.3]} 50... Rb1 {[%clk 0:00:11]} 51. b6 {[%clk 0:00:15.8]}
51... Rxb2 {[%clk 0:00:09.9]} 52. b7 {[%clk 0:00:17.2]} 52... Rxf2 {[%clk
0:00:09.9]} 53. b8=Q {[%clk 0:00:16.8]} 53... Ke4 {[%clk 0:00:11.8]} 54. Qc8
{[%clk 0:00:15.2]} 54... f5 {[%clk 0:00:13]} 55. Rf7 {[%clk 0:00:15.8]} 55...
Rf3 {[%clk 0:00:14.5]} 56. Kb5 {[%clk 0:00:14.3]} 56... Bxc3 {[%clk 0:00:14.2]}
57. Qe6+ {[%clk 0:00:14.4]} 57... Be5 {[%clk 0:00:15]} 58. Nc6 {[%clk
0:00:15.5]} 58... Rf2 {[%clk 0:00:10.8]} 59. Nxe5 {[%clk 0:00:16.5]} 59... dxe5
{[%clk 0:00:12.7]} 60. d6 {[%clk 0:00:17.8]} 1-0

[Event "*** Titled Tuesday 3|2 Blitz"]
[Site "Chess.com"]
[Date "2017.03.07"]
[Round "11"]
[White "GMCanty"]
[Black "B-man"]
[Result "0-1"]
[WhiteElo "2335"]
[BlackElo "2484"]
[TimeControl "180+2"]
[EndTime "15:39:42 PST"]
[Termination "B-man won by resignation"]

1. e4 {[%clk 0:03:02]} 1... e5 {[%clk 0:02:06.3]} 2. Nf3 {[%clk 0:03:01.6]} 2...
Nc6 {[%clk 0:02:07.6]} 3. d4 {[%clk 0:03:00.6]} 3... exd4 {[%clk 0:02:08]} 4.
Bc4 {[%clk 0:03:02.5]} 4... Nf6 {[%clk 0:02:08.2]} 5. e5 {[%clk 0:03:04.1]} 5...
d5 {[%clk 0:02:07.1]} 6. Bb5 {[%clk 0:03:05.7]} 6... Ne4 {[%clk 0:02:07.7]} 7.
Nxd4 {[%clk 0:03:07.2]} 7... Bc5 {[%clk 0:02:03.3]} 8. Be3 {[%clk 0:03:06.8]}
8... O-O {[%clk 0:01:30.4]} 9. Nxc6 {[%clk 0:03:06.3]} 9... bxc6 {[%clk
0:01:30.8]} 10. Bxc5 {[%clk 0:03:07.3]} 10... Nxc5 {[%clk 0:01:23.6]} 11. Bxc6
{[%clk 0:03:08.4]} 11... Ba6 {[%clk 0:01:06.3]} 12. Nc3 {[%clk 0:03:06.4]} 12...
d4 {[%clk 0:01:02.5]} 13. Bxa8 {[%clk 0:03:05.8]} 13... Qxa8 {[%clk 0:00:44.9]}
14. Qxd4 {[%clk 0:03:06]} 14... Rd8 {[%clk 0:00:46.3]} 15. Qh4 {[%clk
0:01:56.6]} 15... Ne6 {[%clk 0:00:35.9]} 16. f3 {[%clk 0:01:51.2]} 16... Qb7
{[%clk 0:00:29.7]} 17. Rd1 {[%clk 0:01:36.4]} 17... Re8 {[%clk 0:00:29.2]} 18.
b4 {[%clk 0:01:19.4]} 18... Qc6 {[%clk 0:00:26]} 19. Nd5 {[%clk 0:01:11.6]}
19... Qxc2 {[%clk 0:00:18.9]} 20. Qf2 {[%clk 0:00:56.5]} 20... Qc4 {[%clk
0:00:19.6]} 21. f4 {[%clk 0:00:40.1]} 21... c6 {[%clk 0:00:17.4]} 22. Ne3 {[%clk
0:00:30.9]} 22... Qxb4+ {[%clk 0:00:17.7]} 23. Qd2 {[%clk 0:00:32.4]} 23... Qxf4
{[%clk 0:00:16.9]} 24. Nf1 {[%clk 0:00:26.4]} 24... Qxe5+ {[%clk 0:00:17.3]} 25.
Qe3 {[%clk 0:00:26.8]} 25... Qa5+ {[%clk 0:00:17.4]} 26. Kf2 {[%clk 0:00:27.8]}
26... Qxa2+ {[%clk 0:00:16.8]} 27. Rd2 {[%clk 0:00:28.5]} 27... Qc4 {[%clk
0:00:18.2]} 28. Ng3 {[%clk 0:00:29.4]} 28... g6 {[%clk 0:00:18.6]} 29. Re1
{[%clk 0:00:28.6]} 29... h5 {[%clk 0:00:18.8]} 30. Ne4 {[%clk 0:00:29.6]} 30...
Kg7 {[%clk 0:00:16.5]} 31. Nd6 {[%clk 0:00:29.4]} 31... Qh4+ {[%clk 0:00:13.9]}
32. Qg3 {[%clk 0:00:28.1]} 32... Qxg3+ {[%clk 0:00:13.1]} 33. hxg3 {[%clk
0:00:30]} 33... Rd8 {[%clk 0:00:14.6]} 34. Rxe6 {[%clk 0:00:26]} 34... fxe6
{[%clk 0:00:15.6]} 35. Nf5+ {[%clk 0:00:26.2]} 35... exf5 {[%clk 0:00:15.8]} 36.
Rxd8 {[%clk 0:00:28.1]} 36... Bc4 {[%clk 0:00:14]} 37. Rd7+ {[%clk 0:00:29.1]}
37... Kf6 {[%clk 0:00:15.2]} 38. Rxa7 {[%clk 0:00:31]} 38... Bd5 {[%clk
0:00:16.7]} 39. Rc7 {[%clk 0:00:31.3]} 39... Kg5 {[%clk 0:00:17.8]} 40. Rc8
{[%clk 0:00:29.3]} 40... Kf6 {[%clk 0:00:18.8]} 41. Rc7 {[%clk 0:00:30.1]} 41...
Ke5 {[%clk 0:00:19.2]} 42. Rg7 {[%clk 0:00:30.5]} 42... Kf6 {[%clk 0:00:20.4]}
43. Rc7 {[%clk 0:00:30.1]} 43... Kg5 {[%clk 0:00:22.3]} 44. Rc8 {[%clk
0:00:30.6]} 44... Be4 {[%clk 0:00:23.7]} 45. Rc7 {[%clk 0:00:31.5]} 45... Kf6
{[%clk 0:00:24.2]} 46. Rc8 {[%clk 0:00:32.3]} 46... Kg5 {[%clk 0:00:24.5]} 47.
Rc7 {[%clk 0:00:31.4]} 47... Kg4 {[%clk 0:00:25.1]} 48. Rg7 {[%clk 0:00:30.7]}
48... f4 {[%clk 0:00:24.6]} 49. gxf4 {[%clk 0:00:31.9]} 49... Kxf4 {[%clk
0:00:26.5]} 50. Rg8 {[%clk 0:00:32.1]} 50... Ke5 {[%clk 0:00:27.2]} 51. Rf8
{[%clk 0:00:34]} 51... c5 {[%clk 0:00:27.3]} 52. Rc8 {[%clk 0:00:34.5]} 52...
Kd4 {[%clk 0:00:27.8]} 53. g3 {[%clk 0:00:36]} 53... c4 {[%clk 0:00:27.7]} 54.
Ke1 {[%clk 0:00:36.4]} 54... Bd3 {[%clk 0:00:28.4]} 55. Kd2 {[%clk 0:00:37.5]}
55... Ke4 {[%clk 0:00:29.5]} 56. Rf8 {[%clk 0:00:34.8]} 56... Kd4 {[%clk
0:00:30.6]} 57. Rd8+ {[%clk 0:00:34.8]} 57... Ke4 {[%clk 0:00:30.7]} 58. Rf8
{[%clk 0:00:36.7]} 58... Ke5 {[%clk 0:00:31.9]} 59. Kc3 {[%clk 0:00:36.2]} 59...
Ke4 {[%clk 0:00:29.8]} 60. Rf4+ {[%clk 0:00:36.8]} 60... Ke3 {[%clk 0:00:30.5]}
61. Rf8 {[%clk 0:00:36.4]} 61... Bf5 {[%clk 0:00:30.4]} 62. Kxc4 {[%clk
0:00:36.1]} 62... Kf3 {[%clk 0:00:31.6]} 63. Kd4 {[%clk 0:00:35.6]} 63... Kxg3
{[%clk 0:00:32.6]} 64. Ke3 {[%clk 0:00:37.5]} 64... h4 {[%clk 0:00:33.9]} 65.
Rh8 {[%clk 0:00:36.3]} 65... h3 {[%clk 0:00:34.2]} 66. Ke2 {[%clk 0:00:36.1]}
66... Kg2 {[%clk 0:00:34.6]} 67. Ke3 {[%clk 0:00:37.2]} 67... h2 {[%clk
0:00:35.6]} 68. Kf4 {[%clk 0:00:39.1]} 68... h1=Q {[%clk 0:00:35.9]} 69. Rxh1
{[%clk 0:00:41]} 69... Kxh1 {[%clk 0:00:37.8]} 70. Kg5 {[%clk 0:00:42.9]} 70...
Kg2 {[%clk 0:00:39]} 71. Kf4 {[%clk 0:00:44.8]} 71... Kh3 {[%clk 0:00:38.4]} 72.
Kg5 {[%clk 0:00:46.7]} 72... Kg3 {[%clk 0:00:39.8]} 73. Kh6 {[%clk 0:00:46.3]}
73... Kf4 {[%clk 0:00:38.6]} 74. Kg7 {[%clk 0:00:46.5]} 74... g5 {[%clk
0:00:39.8]} 0-1

[Event "*** Titled Tuesday 3|2 Blitz"]
[Site "Chess.com"]
[Date "2017.03.07"]
[Round "11"]
[White "HaryKane"]
[Black "jk13"]
[Result "1-0"]
[WhiteElo "2310"]
[BlackElo "2482"]
[TimeControl "180+2"]
[EndTime "15:39:50 PST"]
[Termination "HaryKane won by checkmate"]

1. e4 {[%clk 0:03:02]} 1... e5 {[%clk 0:03:00.6]} 2. Nf3 {[%clk 0:02:56.1]} 2...
Nc6 {[%clk 0:03:02]} 3. d4 {[%clk 0:02:56.2]} 3... exd4 {[%clk 0:03:02.3]} 4.
Bc4 {[%clk 0:02:57.8]} 4... Nf6 {[%clk 0:03:03]} 5. O-O {[%clk 0:02:54]} 5... d6
{[%clk 0:02:56.3]} 6. Nxd4 {[%clk 0:02:53.3]} 6... Be7 {[%clk 0:02:57.7]} 7. Nc3
{[%clk 0:02:52.1]} 7... O-O {[%clk 0:02:58.2]} 8. h3 {[%clk 0:02:48.8]} 8... Re8
{[%clk 0:02:55.1]} 9. Be3 {[%clk 0:02:41.2]} 9... Bf8 {[%clk 0:02:55.6]} 10. f3
{[%clk 0:02:41]} 10... Ne5 {[%clk 0:02:50.9]} 11. Bb3 {[%clk 0:02:39.5]} 11...
c6 {[%clk 0:02:50.9]} 12. Qd2 {[%clk 0:02:39.9]} 12... Ned7 {[%clk 0:02:47.4]}
13. Rad1 {[%clk 0:02:36]} 13... Nc5 {[%clk 0:02:48.5]} 14. Rfe1 {[%clk
0:02:34.5]} 14... Nxb3 {[%clk 0:02:48.3]} 15. axb3 {[%clk 0:02:34.9]} 15... h6
{[%clk 0:02:46.6]} 16. Nde2 {[%clk 0:02:31.5]} 16... Nd7 {[%clk 0:02:37.5]} 17.
f4 {[%clk 0:02:18.2]} 17... Qc7 {[%clk 0:02:31.9]} 18. Ng3 {[%clk 0:02:17.7]}
18... Nf6 {[%clk 0:02:27.8]} 19. Kh2 {[%clk 0:02:11.7]} 19... Be6 {[%clk
0:02:26.2]} 20. Bd4 {[%clk 0:02:11.8]} 20... Nh7 {[%clk 0:02:24.8]} 21. Nh5
{[%clk 0:01:51.7]} 21... f6 {[%clk 0:02:15.8]} 22. Ne2 {[%clk 0:01:41.3]} 22...
Bf7 {[%clk 0:02:13.8]} 23. Nhg3 {[%clk 0:01:40.1]} 23... h5 {[%clk 0:02:01.9]}
24. Ng1 {[%clk 0:01:26.9]} 24... Rad8 {[%clk 0:01:57.2]} 25. Nf3 {[%clk
0:01:22.8]} 25... c5 {[%clk 0:01:50.2]} 26. Bf2 {[%clk 0:01:16.4]} 26... d5
{[%clk 0:01:49.7]} 27. e5 {[%clk 0:01:16.2]} 27... d4 {[%clk 0:01:34.6]} 28. Ne4
{[%clk 0:01:03.9]} 28... Qc6 {[%clk 0:01:25.6]} 29. Bh4 {[%clk 0:00:58.4]} 29...
Bd5 {[%clk 0:01:14]} 30. Qd3 {[%clk 0:00:54.2]} 30... Rd7 {[%clk 0:00:55.4]} 31.
b4 {[%clk 0:00:35.5]} 31... b6 {[%clk 0:00:54.8]} 32. bxc5 {[%clk 0:00:24.3]}
32... bxc5 {[%clk 0:00:55.8]} 33. c4 {[%clk 0:00:21.6]} 33... Bxe4 {[%clk
0:00:41.4]} 34. Rxe4 {[%clk 0:00:23.5]} 34... Rb7 {[%clk 0:00:37.6]} 35. Rde1
{[%clk 0:00:23.2]} 35... Rxb2 {[%clk 0:00:34.5]} 36. exf6 {[%clk 0:00:22.1]}
36... Rxe4 {[%clk 0:00:35.5]} 37. Rxe4 {[%clk 0:00:20.7]} 37... Nxf6 {[%clk
0:00:36]} 38. Re5 {[%clk 0:00:17.9]} 38... a5 {[%clk 0:00:27.9]} 39. Rf5 {[%clk
0:00:11.1]} 39... Qe4 {[%clk 0:00:25.9]} 40. Qxe4 {[%clk 0:00:08]} 40... Nxe4
{[%clk 0:00:27.1]} 41. Re5 {[%clk 0:00:08.4]} 41... Nc3 {[%clk 0:00:20.8]} 42.
Re8 {[%clk 0:00:05]} 42... Kf7 {[%clk 0:00:21.5]} 43. Ra8 {[%clk 0:00:05.6]}
43... a4 {[%clk 0:00:21.7]} 44. Ne5+ {[%clk 0:00:06.6]} 44... Ke6 {[%clk
0:00:19.4]} 45. Rxf8 {[%clk 0:00:06.9]} 45... a3 {[%clk 0:00:20.7]} 46. Re8+
{[%clk 0:00:08]} 46... Kd6 {[%clk 0:00:21.1]} 47. Be7+ {[%clk 0:00:07.6]} 47...
Kc7 {[%clk 0:00:22.2]} 48. Bxc5 {[%clk 0:00:08.4]} 48... a2 {[%clk 0:00:23.6]}
49. Ra8 {[%clk 0:00:09.1]} 49... Rb1 {[%clk 0:00:23.1]} 50. Ra7+ {[%clk
0:00:10.6]} 50... Kc8 {[%clk 0:00:23.4]} 51. Nc6 {[%clk 0:00:12.1]} 51... Re1
{[%clk 0:00:22]} 52. Bd6 {[%clk 0:00:11.5]} 52... Nd5 {[%clk 0:00:14.4]} 53.
Rxa2 {[%clk 0:00:07.3]} 53... Nc7 {[%clk 0:00:13.8]} 54. Nxd4 {[%clk 0:00:07.8]}
54... Ne8 {[%clk 0:00:14.4]} 55. Be5 {[%clk 0:00:08]} 55... Rd1 {[%clk
0:00:15.9]} 56. Nf3 {[%clk 0:00:08]} 56... Kd7 {[%clk 0:00:17.8]} 57. Rd2+
{[%clk 0:00:08.5]} 57... Rxd2 {[%clk 0:00:18.2]} 58. Nxd2 {[%clk 0:00:10.4]}
58... Ke6 {[%clk 0:00:19.3]} 59. Nf3 {[%clk 0:00:11.1]} 59... g6 {[%clk
0:00:21.2]} 60. Nd4+ {[%clk 0:00:12.3]} 60... Kd7 {[%clk 0:00:22.3]} 61. Kg3
{[%clk 0:00:13.8]} 61... Ke7 {[%clk 0:00:23.1]} 62. Kf3 {[%clk 0:00:15.1]} 62...
Kf7 {[%clk 0:00:25]} 63. Ke4 {[%clk 0:00:16.4]} 63... Ke7 {[%clk 0:00:26.5]} 64.
Kd5 {[%clk 0:00:17.5]} 64... Kd7 {[%clk 0:00:28.4]} 65. c5 {[%clk 0:00:18.8]}
65... Ke7 {[%clk 0:00:29.1]} 66. c6 {[%clk 0:00:20.2]} 66... Kd8 {[%clk
0:00:31]} 67. Ke6 {[%clk 0:00:21.1]} 67... Kc8 {[%clk 0:00:32.9]} 68. Kf7 {[%clk
0:00:22.3]} 68... Nc7 {[%clk 0:00:34.8]} 69. Bxc7 {[%clk 0:00:22.8]} 69... Kxc7
{[%clk 0:00:36]} 70. Kxg6 {[%clk 0:00:24.4]} 70... Kd6 {[%clk 0:00:37.9]} 71. f5
{[%clk 0:00:25.6]} 71... h4 {[%clk 0:00:39.8]} 72. f6 {[%clk 0:00:26.9]} 72...
Kc7 {[%clk 0:00:40.1]} 73. f7 {[%clk 0:00:27.1]} 73... Kb6 {[%clk 0:00:42]} 74.
f8=Q {[%clk 0:00:26.9]} 74... Kc7 {[%clk 0:00:43.9]} 75. Qe7+ {[%clk 0:00:27.8]}
75... Kb6 {[%clk 0:00:45.8]} 76. Qb7+ {[%clk 0:00:28]} 76... Ka5 {[%clk
0:00:47]} 77. Qb5# {[%clk 0:00:23.1]} 1-0

[Event "*** Titled Tuesday 3|2 Blitz"]
[Site "Chess.com"]
[Date "2017.03.07"]
[Round "11"]
[White "Izoria123"]
[Black "GMHess"]
[Result "1-0"]
[WhiteElo "2583"]
[BlackElo "2587"]
[TimeControl "180+2"]
[EndTime "15:40:14 PST"]
[Termination "Izoria123 won by resignation"]

1. e4 {[%clk 0:02:57]} 1... e5 {[%clk 0:02:56.9]} 2. Nf3 {[%clk 0:02:58.5]} 2...
Nc6 {[%clk 0:02:57.6]} 3. Bc4 {[%clk 0:02:59.3]} 3... Bc5 {[%clk 0:02:57.8]} 4.
c3 {[%clk 0:02:59.2]} 4... Nf6 {[%clk 0:02:58.8]} 5. d3 {[%clk 0:03:00.7]} 5...
a6 {[%clk 0:02:56.2]} 6. O-O {[%clk 0:03:00.2]} 6... Ba7 {[%clk 0:02:57.3]} 7.
a4 {[%clk 0:02:55.6]} 7... d6 {[%clk 0:02:56.8]} 8. Re1 {[%clk 0:02:53.9]} 8...
O-O {[%clk 0:02:23.3]} 9. h3 {[%clk 0:02:52.8]} 9... Ne7 {[%clk 0:02:01]} 10.
Bg5 {[%clk 0:02:26.1]} 10... Ng6 {[%clk 0:02:01.1]} 11. Nh4 {[%clk 0:02:26.9]}
11... Kh8 {[%clk 0:02:02]} 12. Nxg6+ {[%clk 0:02:26.1]} 12... fxg6 {[%clk
0:02:03.9]} 13. Be3 {[%clk 0:02:24.3]} 13... Nh5 {[%clk 0:01:59.8]} 14. d4
{[%clk 0:02:03.8]} 14... Nf4 {[%clk 0:01:46]} 15. Bf1 {[%clk 0:02:02.7]} 15...
Qh4 {[%clk 0:01:34.1]} 16. Nd2 {[%clk 0:02:01.3]} 16... Be6 {[%clk 0:00:48.3]}
17. dxe5 {[%clk 0:01:23.6]} 17... dxe5 {[%clk 0:00:49]} 18. Nf3 {[%clk
0:01:23.4]} 18... Qf6 {[%clk 0:00:44.9]} 19. Bxa7 {[%clk 0:01:23.8]} 19... Rxa7
{[%clk 0:00:46.8]} 20. Re3 {[%clk 0:01:24]} 20... Raa8 {[%clk 0:00:39.4]} 21. a5
{[%clk 0:01:22.3]} 21... g5 {[%clk 0:00:39]} 22. Qe1 {[%clk 0:01:11.4]} 22... g4
{[%clk 0:00:37]} 23. hxg4 {[%clk 0:01:12.2]} 23... Bxg4 {[%clk 0:00:38.5]} 24.
Nh2 {[%clk 0:01:13.3]} 24... Bh5 {[%clk 0:00:31.1]} 25. f3 {[%clk 0:01:06.5]}
25... Rad8 {[%clk 0:00:25.2]} 26. Kh1 {[%clk 0:01:05.5]} 26... Qd6 {[%clk
0:00:22.2]} 27. b4 {[%clk 0:01:02.8]} 27... Rd7 {[%clk 0:00:18.3]} 28. g3 {[%clk
0:00:58.9]} 28... Ne6 {[%clk 0:00:18.3]} 29. Rd3 {[%clk 0:00:59.6]} 29... Qxd3
{[%clk 0:00:19.4]} 30. Bxd3 {[%clk 0:01:00.2]} 30... Rxd3 {[%clk 0:00:21.3]} 31.
Rd1 {[%clk 0:01:01.2]} 31... Rfxf3 {[%clk 0:00:19]} 32. Rxd3 {[%clk 0:00:57.1]}
32... Rxd3 {[%clk 0:00:20.9]} 33. Qf2 {[%clk 0:00:54.4]} 33... Kg8 {[%clk
0:00:18.3]} 34. Qf5 {[%clk 0:00:46.5]} 34... Rd1+ {[%clk 0:00:13.5]} 35. Kg2
{[%clk 0:00:47.6]} 35... Rd2+ {[%clk 0:00:14.5]} 36. Kg1 {[%clk 0:00:48.7]}
36... Bf7 {[%clk 0:00:15.2]} 37. Qxe5 {[%clk 0:00:47.2]} 37... h6 {[%clk
0:00:16.2]} 38. Nf3 {[%clk 0:00:47.7]} 38... Rc2 {[%clk 0:00:09.1]} 39. Nd4
{[%clk 0:00:39.6]} 39... Nxd4 {[%clk 0:00:05]} 40. cxd4 {[%clk 0:00:41.5]} 40...
Rc4 {[%clk 0:00:05.4]} 41. d5 {[%clk 0:00:37.7]} 41... Kh7 {[%clk 0:00:03.4]}
42. Qe7 {[%clk 0:00:34.3]} 42... Kg6 {[%clk 0:00:02.9]} 43. Kf2 {[%clk
0:00:23.4]} 43... h5 {[%clk 0:00:03.8]} 44. Ke3 {[%clk 0:00:23.6]} 44... Rc3+
{[%clk 0:00:05.2]} 45. Kd4 {[%clk 0:00:24.3]} 45... Rc1 {[%clk 0:00:06.4]} 46.
Qe5 {[%clk 0:00:25.1]} 46... Kh7 {[%clk 0:00:06.2]} 47. Qe7 {[%clk 0:00:24.1]}
47... Bg6 {[%clk 0:00:06.3]} 48. e5 {[%clk 0:00:23.7]} 48... Rd1+ {[%clk
0:00:07.6]} 49. Kc4 {[%clk 0:00:24.8]} 49... Rc1+ {[%clk 0:00:07.4]} 50. Kb3
{[%clk 0:00:25.7]} 50... Rb1+ {[%clk 0:00:07]} 51. Kc3 {[%clk 0:00:26.8]} 51...
Rc1+ {[%clk 0:00:08.1]} 52. Kb2 {[%clk 0:00:27.9]} 52... Rd1 {[%clk 0:00:09.3]}
53. d6 {[%clk 0:00:26.2]} 53... cxd6 {[%clk 0:00:11.2]} 54. exd6 {[%clk
0:00:27.8]} 54... Bf5 {[%clk 0:00:12.7]} 55. b5 {[%clk 0:00:28.8]} 55... axb5
{[%clk 0:00:13.6]} 56. Qxb7 {[%clk 0:00:30]} 56... Rxd6 {[%clk 0:00:14.5]} 57.
a6 {[%clk 0:00:31.4]} 57... Rd2+ {[%clk 0:00:12.7]} 58. Kc3 {[%clk 0:00:29]}
58... Rd3+ {[%clk 0:00:13.4]} 59. Kb2 {[%clk 0:00:29]} 59... Rd2+ {[%clk
0:00:14]} 60. Kc1 {[%clk 0:00:26.9]} 60... Rd4 {[%clk 0:00:06.4]} 61. a7 {[%clk
0:00:25.2]} 61... Be4 {[%clk 0:00:07.8]} 62. Qxb5 {[%clk 0:00:26.3]} 62... g6
{[%clk 0:00:04.7]} 63. Qe5 {[%clk 0:00:24.4]} 63... Ra4 {[%clk 0:00:04]} 64.
Qe7+ {[%clk 0:00:21.9]} 64... Kh6 {[%clk 0:00:05.2]} 65. Qf8+ {[%clk 0:00:22.6]}
65... Kh7 {[%clk 0:00:04.5]} 66. Qe7+ {[%clk 0:00:17.6]} 66... Kh6 {[%clk
0:00:05.3]} 67. Qd7 {[%clk 0:00:18.3]} 67... Rb4 {[%clk 0:00:03.2]} 68. Qd2+
{[%clk 0:00:18.1]} 1-0